[Event "87th Spanish Championship 2022"]
[Site "Linares"]
[Date "2022.08.16"]
[Round "7.17"]
[White "Asis Gargatagli, Hipolito"]
[Black "Massanet Massanet, Sebastian"]
[Result "1-0"]
[ECO "C05"]
[WhiteElo "2514"]
[BlackElo "2232"]
[Annotator "TA"]
[PlyCount "79"]
[EventDate "2022.08.11"]
[EventType "swiss"]
[EventCountry "ESP"]
[SourceTitle "playchess.com"]
[Source "ChessBase"]
[SourceQuality "1"]
[TimeControl "5400+30"]

{[%evp 15,79,19,18,14,37,35,30,13,5,11,17,21,31,0,58,16,73,43,102,107,121,94,118,56,119,127,138,121,319,157,312,311,279,159,172,168,349,9,5,7,36,8,100,102,183,181,29982,29983,29983,29984,29984,29985,29985,29986,29986,29987,29987,29988,29990,29991,29993,29994,29995,29996,29996,549]} 1. e4 {[%emt 0:00:04]} e6 {[%emt 0:00:31]} 2. d4 {[%emt 0:00:11]} d5 {[%emt 0:00:06]} 3. Nd2 {[%emt 0:00:23]} Nf6 {[%emt 0:00:16]} 4. e5 {[%emt 0:00:08]} Nfd7 {[%emt 0:00:04]} 5. Ngf3 {[%emt 0:00:07]} c5 {[%emt 0:00:07]} 6. c3 {[%emt 0:00:05]} Nc6 {[%emt 0:00:19]} 7. Bd3 {[%emt 0:00:07]} Be7 {[%emt 0:00:32]} 8. O-O {[%emt 0:00:38]} a5 {[%emt 0:00:41]} 9. a4 $1 {[%emt 0:00:33][%mdl 4] is more profitable than 9.Re1 at the moment. C06: French Tarrasch: 3...Nf6 4 e5 Nfd7 5 Bd3 main lines.} cxd4 {[%emt 0:03:47]} 10. cxd4 {[%emt 0:00:10]} Nb4 {[%emt 0:01:36]} 11. Bb1 {[%emt 0:02:30] White has an edge.} b6 {[%emt 0:01:35]} 12. Re1 {[%emt 0:03:38]} Ba6 {[%emt 0:02:00]} 13. Nf1 {[%emt 0:03:47][%cal Bd2f1,Bf1g3,Bg3e2,Be2f4][%mdl 32] [#]} h5 $146 {[%emt 0:08:31]} ({Predecessor:} 13... Rc8 14. Ra3 b5 15. h4 h6 16. Ng3 bxa4 17. Nh2 Qb6 18. Rf3 h5 19. Be3 g6 {1-0 (44) Guseinov,G (2645)-Swayams,M (2440) Porticcio 2017}) 14. Ng3 {[%emt 0:06:22]} h4 {[%emt 0:04:37]} (14... Rc8 $11) 15. Ne2 $14 {[%emt 0:01:50]} b5 {[%emt 0:03:52]} (15... h3 $11) 16. Nf4 {[%emt 0:25:42][%cal Of4e6]} (16. Nc3 bxa4 17. h3 (17. Qxa4 h3 $11) 17... Kf8 $11) 16... Nb6 {[%emt 0:10:51]} (16... bxa4 $14 17. Nxe6 (17. Rxa4 g5 $15) 17... fxe6 18. Bg6+ Kf8) 17. axb5 $16 {[%emt 0:03:02]} Bxb5 {[%emt 0:00:34]} 18. Nh3 {[%emt 0:03:38] Against g5} Rh5 {[%emt 0:08:17] Inhibits Nfg5.} 19. Ra3 {[%emt 0:07:12]} (19. Nd2 $16 g6 20. Nb3) 19... Nc4 {[%emt 0:07:15]} (19... g6 $14) 20. Rc3 {[%emt 0:00:36]} Nc6 {[%emt 0:11:07]} 21. Nd2 $1 {[%emt 0:05:42]} g6 {[%emt 0:04:22]} (21... Rh8 $16) 22. Nxc4 {[%emt 0:06:39]} (22. Nf4 $18 {is the precise move to win.}) 22... Bxc4 $2 {[%emt 0:02:16]} (22... dxc4 $16 23. Nf4 Qxd4) 23. Nf4 $18 {[%emt 0:00:50]} Rh8 {[%emt 0:01:59] [#]} 24. Rxc4 {[%emt 0:02:37][%mdl 512]} dxc4 $16 {[%emt 0:00:49]} 25. d5 {[%emt 0:00:31] aiming for Qg4.} Nb4 $2 {[%emt 0:04:14]} (25... exd5 $2 26. e6 g5 27. exf7+ Kxf7 28. Ne6 $18) (25... g5) 26. Be4 $2 {[%emt 0:13:38]} ({Inferior is} 26. dxe6 Qxd1 27. exf7+ (27. Rxd1 g5 $15) 27... Kxf7 28. Bxg6+ (28. Rxd1 g5 $17) 28... Kg7 29. Rxd1 Rad8 $11) (26. d6 $18 Bg5 27. Nxe6 $1 fxe6 28. Bxg6+ Kd7 29. Be4) 26... exd5 $11 {[%emt 0:05:10]} 27. Nxd5 {[%emt 0:00:07] Threatens to win with Qa4+.} Ra6 {[%emt 0:04:38]} 28. Qf3 {[%emt 0:02:19][%mdl 1024] Threatening Rd1. White has compensation.} Kf8 {[%emt 0:10:28] [#]} (28... Rh5 $11) 29. Nf4 $1 $16 {[%emt 0:02:00] Strongly threatening e6. White is more active.} Kg7 {[%emt 0:00:52] [#]} (29... g5 $16 30. Rd1 (30. Ng6+ Rxg6 31. Bxg6 Qd5 $16) 30... Qe8 31. Ng6+ Rxg6 32. Bxg6 Rh6) 30. e6 $1 $40 {[%emt 0:00:21][%mdl 128] White wants a kill.} Nd3 $2 {[%emt 0:03:23] [#]} (30... Rxe6 $18 31. Nxe6+ fxe6) 31. Nh5+ $1 {[%emt 0:02:15][%mdl 512] White mates.} Rxh5 {[%emt 0:00:25]} 32. Qxf7+ {[%emt 0:00:05]} Kh8 {[%emt 0:00:06]} 33. Qxg6 {[%emt 0:00:09]} Rxe6 {[%emt 0:01:06]} 34. Qxh5+ {[%emt 0:00:10]} Kg7 {[%emt 0:00:07]} 35. Qh7+ {[%emt 0:00:14]} Kf8 {[%emt 0:00:31]} 36. Qf5+ {[%emt 0:04:18]} Rf6 {[%emt 0:00:19]} 37. Bh6+ $1 {[%emt 0:00:09] A strong pair of Bishops.} Ke8 {[%emt 0:00:40]} 38. Qh5+ {[%emt 0:00:09]} Kd7 {[%emt 0:00:35]} 39. Qb5+ {[%emt 0:00:06]} Kc7 {[%emt 0:00:46]} 40. Qb7+ {[%emt 0:00:09] Weighted Error Value: White=0.32/Black=0.48} 1-0

[Event "87th Spanish Championship 2022"]
[Site "Linares"]
[Date "2022.08.16"]
[Round "7.18"]
[White "Medarde Santiago, Luis Marcos"]
[Black "Hernandez Estevez, Yudania"]
[Result "1-0"]
[ECO "B12"]
[WhiteElo "2330"]
[BlackElo "2193"]
[Annotator "TA"]
[PlyCount "121"]
[EventDate "2022.08.11"]
[EventType "swiss"]
[EventCountry "ESP"]
[SourceTitle "playchess.com"]
[Source "ChessBase"]
[SourceQuality "1"]
[TimeControl "5400+30"]

{[%evp 10,121,60,57,98,95,116,115,119,112,141,147,188,89,149,131,191,156,206,152,138,153,146,138,152,133,231,128,147,68,508,512,478,315,292,243,236,222,222,221,220,229,219,214,220,229,249,241,102,49,134,116,116,27,143,137,212,211,208,99,118,103,87,104,64,74,173,185,173,180,275,283,308,170,138,0,279,288,281,277,439,445,440,439,413,347,354,354,354,340,341,268,318,250,898,879,527,344,1332,1332,1325,1303,1272,1226,1142,1058,1461,1579,29971,29970,29982,29983,29987,29988]} 1. e4 {[%emt 0:00:02]} c6 {[%emt 0:00:11]} 2. d4 {[%emt 0:00:06]} d5 {[%emt 0:00:06]} 3. f3 {[%emt 0:00:19]} g6 {[%emt 0:01:49]} 4. Nc3 {[%emt 0:00:17]} Bg7 {[%emt 0:00:36]} 5. Be3 {[%emt 0:00:12]} e6 {[%emt 0:02:27]} 6. Qd2 {[%emt 0:01:20]} b6 {[%emt 0:05:03] B15: Caro-Kann: 3 Nc3: 3...g6 and 3...dxe4 4 Nxe4 Nf6 5 Nxf6+ exf6.} 7. O-O-O {[%emt 0:13:24]} Ba6 {[%emt 0:00:33]} 8. Nge2 {[%emt 0:00:11]} Nd7 {[%emt 0:01:30] White is better.} 9. g4 {[%emt 0:02:28] [#]} Rc8 $146 {[%emt 0:06:55]} ({Predecessor:} 9... Ne7 10. Bg2 b5 11. Ng3 Qa5 12. Kb1 b4 13. Nce2 Bxe2 14. Nxe2 Qb5 15. Nc1 h5 {1-0 (28) Pancevski,F (2422)-Martinovic,S (2452) Paracin 2009}) 10. h4 {[%emt 0:01:54]} h6 {[%emt 0:02:05]} 11. Bh3 {[%emt 0:11:50]} (11. Kb1 $18) 11... Bxe2 {[%emt 0:05:25]} ({Black should try} 11... b5) 12. Qxe2 $16 {[%emt 0:06:42]} Ne7 {[%emt 0:05:11]} (12... b5 $16 {was worth a try.}) 13. f4 $18 {[%emt 0:03:50]} dxe4 {[%emt 0:15:57]} (13... b5 $16 {was called for.}) 14. Nxe4 {[%emt 0:00:51]} Nf6 {[%emt 0:00:17]} 15. Nxf6+ {[%emt 0:00:52]} Bxf6 {[%emt 0:00:08]} 16. f5 $1 {[%emt 0:01:50]} exf5 {[%emt 0:07:57]} 17. gxf5 {[%emt 0:00:40]} gxf5 {[%emt 0:02:53]} (17... g5 $16) 18. Bf4 {[%emt 0:10:04]} (18. Rhf1 $18) 18... Qd5 $16 {[%emt 0:01:17]} 19. c4 {[%emt 0:02:21]} (19. Kb1 $16) 19... Qa5 $2 {[%emt 0:00:33][%mdl 8192]} (19... Qe6 $14 20. Qd3 b5) 20. Kb1 $18 {[%emt 0:00:39]} Rd8 {[%emt 0:04:15]} 21. d5 {[%emt 0:08:39]} cxd5 {[%emt 0:02:32]} 22. Be5 {[%emt 0:02:10]} Bxe5 {[%emt 0:02:06]} 23. Qxe5 {[%emt 0:00:01]} Rg8 {[%emt 0:00:49]} 24. Rhe1 {[%emt 0:03:06][%csl Ge1][%cal Re5e7]} Qc5 {[%emt 0:04:00]} 25. cxd5 {[%emt 0:01:31] Threatens to win with d6.} ({Stronger than} 25. Bxf5 d4 $11) 25... Qd6 {[%emt 0:01:49]} 26. Qxf5 $1 {[%emt 0:00:36]} Kf8 {[%emt 0:00:25]} 27. Qf1 {[%emt 0:01:46]} Qg6+ {[%emt 0:05:18]} 28. Ka1 {[%emt 0:00:09]} Rxd5 {[%emt 0:00:21]} 29. Rc1 {[%emt 0:06:12]} (29. Qe2 $16 Rxd1+ 30. Qxd1) 29... Rc5 {[%emt 0:04:02]} (29... f5 $1 $14) 30. Rxc5 $16 {[%emt 0:04:45]} bxc5 {[%emt 0:00:07]} 31. Qf4 {[%emt 0:00:06]} (31. Qb5 $6 Qg3 32. Qa5 Kg7 33. Rxe7 Qxh3 $11) (31. a3 $1 $16) 31... Qg3 {[%emt 0:02:41]} (31... Nc6 $1 $11 32. Rf1 (32. Qe3 $2 Nd4 $19) 32... Nd4) 32. Qxh6+ {[%emt 0:00:26]} Rg7 {[%emt 0:00:21] [#]} (32... Ke8 $16 33. Qc6+ Kf8) 33. Rd1 $1 $40 {[%emt 0:03:18][%cal Rd1d8][%mdl 128] White attacks with force.} Ng6 {[%emt 0:03:46] [#]} 34. Qd2 {[%emt 0:05:42]} Kg8 {[%emt 0:00:24]} 35. Qd8+ {[%emt 0:00:22]} Nf8 {[%emt 0:00:19]} 36. Bf5 {[%emt 0:01:32]} Qf2 {[%emt 0:01:31]} 37. Bb1 {[%emt 0:03:35] 0x0.00144e9ae31adp-1022s more active pieces.} Rg1 {[%emt 0:04:43]} (37... Rg2 $16 {is a better defense.} 38. Qb8 Qxh4) 38. Rxg1+ {[%emt 0:01:09]} Qxg1 {[%emt 0:00:07][%mdl 4096] Endgame [#] KQB-KQN} 39. h5 $1 {[%emt 0:00:11]} Qd4 {[%emt 0:02:05]} (39... Qg7 $142 40. Qd5 Qg1) 40. Qg5+ {[%emt 0:00:08]} Kh8 {[%emt 0:01:37]} 41. Qh6+ {[%emt 0:00:27]} (41. Qe7 $142 {[%cal Re7f8]} Kg8 42. Qxa7) 41... Kg8 {[%emt 0:00:10]} 42. Qg5+ {[%emt 0:00:02]} (42. Qc6 $16) 42... Kh8 $1 {[%emt 0:00:26] White stays focused until the end.} 43. Qe7 {[%emt 0:00:20][%cal Re7f8]} Kg8 {[%emt 0:00:52]} 44. Qxa7 {[%emt 0:00:08]} Kg7 {[%emt 0:02:37]} (44... Qd5 {might work better.} 45. h6 Qc6) 45. h6+ {[%emt 0:00:40]} Kxh6 {[%emt 0:02:12]} 46. Qxf7 {[%emt 0:00:07]} Qd6 {[%emt 0:00:13]} 47. a3 {[%emt 0:01:16]} Nd7 {[%emt 0:00:11]} 48. Qh7+ {[%emt 0:00:30]} Kg5 {[%emt 0:00:05]} 49. Qf5+ {[%emt 0:00:04]} Kh6 {[%emt 0:00:11]} 50. a4 {[%emt 0:01:09]} Ne5 {[%emt 0:00:20]} 51. Bc2 {[%emt 0:01:45] Hoping for Qf4+.} Qd4 $2 {[%emt 0:00:53]} (51... Kg7 52. a5 Nc6 53. Qh7+ (53. a6 Nb4 $16) 53... Kf8) 52. Qf6+ {[%emt 0:01:11]} Kh5 {[%emt 0:00:19]} 53. Ka2 {[%emt 0:01:29]} c4 $2 {[%emt 0:01:17] [#]} (53... Kg4 54. a5 Qd5+ 55. Ka1 c4 56. Qf5+ Kg3 57. Qg5+ Kf2) 54. Bd1+ $1 {[%emt 0:00:23][%mdl 512]} Qxd1 {[%emt 0:01:40]} 55. Qxe5+ {[%emt 0:00:03] KQ-KQ} Kg6 {[%emt 0:01:11]} 56. Qe6+ {[%emt 0:00:05]} Kg5 {[%emt 0:00:21]} 57. Qxc4 {[%emt 0:00:11] a5 is the strong threat.} Kf6 {[%emt 0:00:49]} 58. a5 {[%emt 0:00:21][%cal Ba4a5,Ba5a6][%mdl 32]} Ke7 {[%emt 0:00:23]} 59. a6 {[%emt 0:00:15] White mates.} Qe1 {[%emt 0:00:46]} 60. Qc7+ {[%emt 0:00:34]} Kf6 {[%emt 0:00:37]} 61. Qc3+ {[%emt 0:00:23] Weighted Error Value: White=0.30/Black=0.53} 1-0

[Event "87th Spanish Championship 2022"]
[Site "Linares"]
[Date "2022.08.16"]
[Round "7.19"]
[White "Macias Pino, Diego"]
[Black "Jimenez Fernandez, Rebeca"]
[Result "1-0"]
[ECO "B76"]
[WhiteElo "2355"]
[BlackElo "1908"]
[Annotator "TA"]
[PlyCount "77"]
[EventDate "2022.08.11"]
[EventType "swiss"]
[EventCountry "ESP"]
[SourceTitle "playchess.com"]
[Source "ChessBase"]
[SourceQuality "1"]
[TimeControl "5400+30"]

{[%evp 24,77,47,39,49,45,60,22,54,54,55,55,64,62,70,71,74,79,86,89,227,143,151,111,129,129,129,130,205,212,203,197,292,239,247,208,273,266,423,429,617,589,537,272,498,429,6279,5693,29968,29967,29965,29966,5520,5513,1738,1558]} 1. e4 {[%emt 0:00:07]} c5 {[%emt 0:00:05]} 2. Nf3 {[%emt 0:00:05]} d6 {[%emt 0:00:04]} 3. d4 {[%emt 0:00:04]} cxd4 {[%emt 0:00:03]} 4. Nxd4 {[%emt 0:00:06]} Nf6 {[%emt 0:00:05]} 5. Nc3 {[%emt 0:00:07]} g6 {[%emt 0:00:11]} 6. Be3 {[%emt 0:00:05]} Bg7 {[%emt 0:00:06]} 7. f3 {[%emt 0:00:12]} O-O {[%emt 0:00:08]} 8. Qd2 {[%emt 0:00:08]} Nc6 {[%emt 0:00:05]} 9. O-O-O {[%emt 0:00:43]} d5 {[%emt 0:00:10]} 10. exd5 {[%emt 0:00:04]} Nxd5 {[%emt 0:00:08]} 11. Nxc6 {[%emt 0:00:04]} bxc6 {[%emt 0:00:09]} 12. Bd4 {[%emt 0:00:03]} Bxd4 {[%emt 0:03:12]} 13. Qxd4 {[%emt 0:00:15][%cal Rc3d5]} Qc7 {[%emt 0:01:25] B76: Sicilian Dragon: Yugoslav Attack, 9 g4 and 9 0-0-0.} 14. Bc4 {[%emt 0:11:33]} ({Don't play} 14. Nxd5 cxd5 15. Kb1 Bb7 $11) 14... Nb6 {[%emt 0:13:09] [#]} 15. g3 $146 {[%emt 0:11:22]} (15. Bd3 $5 {[%cal Rh2h4]}) ({Predecessor:} 15. Kb1 Nxc4 16. Qxc4 Be6 17. Qc5 Rfd8 18. b3 Rxd1+ 19. Rxd1 Qxh2 20. Rd2 Qc7 21. g4 {1-0 (72) Sjugirov,S (2626)-Shinkevich,V (2520) Belgorod 2010}) 15... Nxc4 {[%emt 0:01:18] The position is equal.} (15... c5 {feels hotter.} 16. Nd5 Nxd5 17. Qxd5 Be6) 16. Qxc4 {[%emt 0:00:49]} Be6 {[%emt 0:01:07] Against Nd5} 17. Qc5 {[%emt 0:01:39]} Qb6 {[%emt 0:13:15]} 18. Na4 {[%emt 0:15:19]} Qa6 {[%emt 0:20:55]} 19. b3 {[%emt 0:00:11]} Rfe8 {[%emt 0:03:18]} 20. Rhe1 {[%emt 0:02:17][%cal Bh1e1,Be1e2,Be2d2][%mdl 32]} Rab8 {[%emt 0:01:23]} 21. c4 {[%emt 0:05:40] Inhibits Rb5.} Rb7 {[%emt 0:17:46]} (21... Qb7 $16 {was called for.}) 22. Re2 {[%emt 0:01:33]} Rc7 {[%emt 0:17:20]} 23. Red2 {[%emt 0:03:23]} Qc8 {[%emt 0:00:24] Against Rd8} 24. g4 {[%emt 0:00:48]} f6 {[%emt 0:02:59]} 25. h4 {[%emt 0:00:40] White is much more active. The black rooks are badly placed.} Bd5 {[%emt 0:00:43]} (25... Bf7 $16 26. Qe3 c5) 26. Qe3 $18 {[%emt 0:00:33]} ({Wrong is} 26. cxd5 $2 cxd5 27. Rxd5 Rxc5+ 28. Rxc5 Qb8 $19) 26... Bf7 {[%emt 0:02:57]} 27. Nc5 {[%emt 0:00:03]} Kg7 {[%emt 0:00:46]} (27... a5 {is a better defense.} 28. Kb2 Qb8) 28. Kb2 {[%emt 0:00:19]} a5 {[%emt 0:00:20]} 29. Rd7 {[%emt 0:01:29]} Rxd7 {[%emt 0:00:27]} 30. Rxd7 {[%emt 0:00:02]} (30. Nxd7 Qc7 $16) 30... a4 {[%emt 0:00:34]} (30... Kf8 $142 31. g5 Qb8) 31. Rxe7 {[%emt 0:00:22]} Rxe7 {[%emt 0:00:26]} (31... Kf8 $142) 32. Qxe7 {[%emt 0:00:03]} axb3 {[%emt 0:00:08]} 33. axb3 {[%emt 0:00:12][%mdl 4096] [#] Endgame And now Nd7 would win. KQB-KQN} h5 $2 {[%emt 0:00:21]} (33... Qe8 {keeps fighting.} 34. Qxe8 (34. Ne6+ Kg8 $18) 34... Bxe8) 34. Ne4 {[%emt 0:03:23]} hxg4 {[%emt 0:01:30]} (34... Qe6 $142 35. Qxe6 Bxe6 36. gxh5 gxh5) 35. Qxf6+ {[%emt 0:00:02]} Kg8 {[%emt 0:00:10]} 36. Nd6 {[%emt 0:00:28]} Qe6 {[%emt 0:00:11]} 37. Qxf7+ {[%emt 0:00:18]} Qxf7 {[%emt 0:00:16]} 38. Nxf7 {[%emt 0:00:01][%cal Of3g4]} g3 {[%emt 0:00:15]} 39. Ng5 {[%emt 0:00:02] Weighted Error Value: White=0.26 (precise) /Black=0.62} 1-0

[Event "87th Spanish Championship 2022"]
[Site "Linares"]
[Date "2022.08.16"]
[Round "7.20"]
[White "Lin, Yingrui"]
[Black "Domingo Nunez, Alejandro"]
[Result "1-0"]
[ECO "A10"]
[WhiteElo "2314"]
[BlackElo "2335"]
[Annotator "TA"]
[PlyCount "123"]
[EventDate "2022.08.11"]
[EventType "swiss"]
[EventCountry "ESP"]
[SourceTitle "playchess.com"]
[Source "ChessBase"]
[SourceQuality "1"]
[TimeControl "5400+30"]

{[%evp 21,123,-15,-1,-18,-16,-40,-33,-18,0,0,0,0,0,2,0,0,0,0,0,7,18,6,8,0,16,7,36,26,26,21,20,23,35,41,44,35,65,43,107,99,99,93,115,75,136,126,159,137,169,29,27,28,28,35,34,22,28,19,19,6,20,22,27,41,299,-5,285,280,271,95,459,445,29965,29968,29961,29962,29968,29963,6207,5316,29975,29976,29975,29977,29977,29978,29978,29979,29984,29985,29985,29986,29986,29987,29989,29990,29990,29989,29989,29990,29990,29991,29994,29995]} 1. c4 b6 2. Nc3 Bb7 3. Nf3 Nf6 4. g3 g6 5. Bg2 Bg7 6. O-O O-O 7. Rb1 c5 8. a3 d5 9. cxd5 Nxd5 10. Nxd5 Qxd5 11. d3 Nc6 12. Ng5 {A38: Symmetrical English vs ...g6: 4 Bg2 Bg7 5 Nf3 Nf6.} Qd7 13. Qa4 (13. b4 {is interesting.} cxb4 14. axb4 Nd4 15. Bxb7 Qxb7 16. Bb2) 13... h6 14. Nf3 {[%cal Bg5f3,Bf3d2,Bd2e4][%mdl 32] [#] Black is slightly better.} Ne5 $146 ({Predecessor:} 14... Rfd8 15. Qh4 Nd4 16. Nxd4 Bxg2 17. Kxg2 g5 18. Qh5 cxd4 19. f4 Qd5+ 20. Kg1 gxf4 21. Qxd5 Rxd5 22. Bxf4 {½-½ (41) Bukal,V-Orel,O (2215) Skender Vakuf (Knezevo) 1980}) 15. Qxd7 Nxd7 16. Bd2 Rac8 17. Rfc1 {[%cal Of3e5]} Rfd8 {[%cal Oc5c4]} 18. Bc3 Nf6 19. Nd2 Bxg2 20. Kxg2 Bf8 21. Bxf6 exf6 22. Rc2 Re8 23. Ne4 Rc6 24. g4 Kg7 25. Rbc1 Rce6 26. f4 f5 27. gxf5 gxf5 28. Ng3 Kh7 29. Re1 (29. Kf3 {looks sharper.} Re3+ 30. Kf2 Bd6 31. Ne4) 29... Re3 (29... Rd8 $14) 30. Kf2 $16 ({Of course not} 30. Nxf5 $6 Rxd3 31. exd3 Rxe1 $11) 30... Bg7 31. Nxf5 Rh3 32. Rg1 Bf6 (32... Rxh2+ $142 33. Kg3 Rh5) 33. Kg2 $1 Rg8+ 34. Ng3 Rh5 35. Kh1 (35. b4 $18) 35... Bd4 $11 36. Rg2 Rh4 37. e3 $36 {[%mdl 2048] White has the initiative.} Bxe3 38. Nf5 $1 {[%csl LRe3,LRh4]} Rxg2 $1 39. Rxg2 {[%mdl 4096] Endgame KRB-KRN} Rh3 40. Rg7+ Kh8 41. Kg2 Rh5 42. Rxf7 Bxf4 {[%mdl 8192] [#]} ({Black should try} 42... Kg8 $1 $14) 43. Rf8+ $1 $18 Kh7 44. h4 {aiming for Kh3.} Be5 {[#]} 45. Kh3 $2 (45. Kf3 $1 $18 {[%cal Rf3g4] is the precise move to win. And now Kg4 would win.} Kg6 46. Kg4 Rxf5 47. Rxf5 Bxb2 48. a4) 45... Kg6 $2 {[%mdl 8192]} (45... Bxb2 $2 46. Kg4 Kg6 47. Ne7+ Kg7 48. Rg8+ Kf7 49. Kxh5 $18) (45... Bg7 $16 46. Rf7 Rxf5 47. Rxf5 Kg6) 46. Kg4 {Hoping for Ne7+.} Bf6 {[#] Prevents Ne7+.} (46... Bxb2 $2 47. Ne7+ Kg7 48. Rg8+ Kf7 49. Kxh5 $18) (46... Rxf5 $18 47. Rxf5 Bxb2 48. h5+ Kg7) 47. Rxf6+ $1 {[%mdl 512]} Kxf6 48. Kxh5 Kxf5 49. Kxh6 {KP-KP} Kf6 50. a4 {White threatens Kh7 and mate.} a6 51. h5 {White mates.} b5 52. axb5 axb5 {K3P-KPP} 53. b3 b4 54. Kh7 Ke5 55. Kg6 Kd4 56. h6 Kxd3 {KPP-KPP} 57. h7 Kc3 58. h8=Q+ Kxb3 59. Qa1 c4 60. Kf5 c3 61. Ke4 c2 62. Kd3 {Weighted Error Value: White=0.13 (very precise) /Black=0.51} 1-0

[Event "87th Spanish Championship 2022"]
[Site "Linares"]
[Date "2022.08.16"]
[Round "7.21"]
[White "Cesar Maestre, Bernardo"]
[Black "Alvarez Fernandez, Enrique"]
[Result "0-1"]
[ECO "B41"]
[WhiteElo "2343"]
[BlackElo "2329"]
[Annotator "TA"]
[PlyCount "95"]
[EventDate "2022.08.11"]
[EventType "swiss"]
[EventCountry "ESP"]
[SourceTitle "playchess.com"]
[Source "ChessBase"]
[SourceQuality "1"]
[TimeControl "5400+30"]

{[%evp 11,95,21,27,17,35,29,33,45,45,-14,-9,-28,-10,0,0,0,28,33,43,34,43,21,75,83,75,78,108,44,44,0,0,0,0,0,0,-8,-15,-97,-62,-207,-37,-31,-36,-62,-5,-117,-86,-137,-77,-90,-91,-88,-80,-212,-200,-180,-189,-189,-182,-290,-301,-330,-317,-489,-485,-556,-547,-803,-775,-829,-816,-1105,-1051,-1014,-980,-1438,-1278,-12839,-12839,-12835,-9250,-2376,-2114,-12840,-11198,-1253]} 1. e4 {[%emt 0:00:07]} c5 {[%emt 0:00:23]} 2. Nf3 {[%emt 0:00:06]} e6 {[%emt 0:00:30]} 3. d4 {[%emt 0:00:06]} cxd4 {[%emt 0:00:05]} 4. Nxd4 {[%emt 0:00:05]} a6 {[%emt 0:00:09]} 5. c4 {[%emt 0:00:07]} Nf6 {[%emt 0:01:11]} 6. Nc3 {[%emt 0:00:08]} Bb4 {[%emt 0:01:06]} 7. Qd3 {[%emt 0:00:07] seems to push 7.Bd3 aside. B41: Sicilian: Kan Variation: 5 c4.} Nc6 {[%emt 0:01:51]} 8. Nxc6 {[%emt 0:07:55]} dxc6 {[%emt 0:00:07]} 9. Qxd8+ {[%emt 0:00:59] White is slightly better. 9.e5 is vanishing.} Kxd8 {[%emt 0:00:34]} 10. Bd2 {[%emt 0:00:57]} (10. e5 $14 Ne4 11. a3 Bxc3+ 12. bxc3) 10... e5 $11 {[%emt 0:03:33]} 11. Bd3 {[%emt 0:01:34] [#]} Ke7 $146 {[%emt 0:02:49]} ({Predecessor:} 11... Be6 12. a3 Be7 13. b4 a5 14. b5 Nd7 15. Na4 cxb5 16. cxb5 Bb3 17. Nc3 Nc5 {0-1 (44) Dauletova,G (2285)-Ambartsumova,K (2382) Chess.com INT 2021}) 12. Ke2 {[%emt 0:01:54]} Rd8 {[%emt 0:04:01]} 13. f3 {[%emt 0:00:56]} Bc5 {[%emt 0:06:32]} 14. Na4 {[%emt 0:02:50]} Nd7 {[%emt 0:04:36]} 15. Ba5 {[%emt 0:04:17]} Re8 {[%emt 0:06:27]} 16. Rac1 {[%emt 0:08:26]} b6 {[%emt 0:05:18]} (16... Bd4 $11 {keeps the balance.}) 17. Nxc5 $16 {[%emt 0:02:42]} bxa5 {[%emt 0:10:30] [#]} 18. Na4 {[%emt 0:09:05]} c5 {[%emt 0:05:29] [#]} 19. Bc2 {[%emt 0:05:38]} (19. Rc3 $1 $16) 19... Rb8 {[%emt 0:05:22]} 20. Bb3 {[%emt 0:04:41]} Bb7 {[%emt 0:01:50]} 21. Rhd1 {[%emt 0:11:22]} Bc6 {[%emt 0:04:59]} 22. Nc3 {[%emt 0:10:33]} Rb4 {[%emt 0:00:51]} 23. Nd5+ {[%emt 0:13:28]} Bxd5 {[%emt 0:00:02]} 24. Rxd5 {[%emt 0:00:09]} ({Much weaker is} 24. exd5 a4 25. Bc2 (25. d6+ Kf6 $17) 25... Rxb2 $17) (24. cxd5 $11 a4 25. d6+ Kf6 26. Bc4) 24... Reb8 {[%emt 0:05:02]} 25. Rc2 {[%emt 0:06:37]} (25. Rcd1 $15 R8b7 26. R1d2) 25... R8b7 $2 {[%emt 0:05:44]} ({Black should try} 25... a4 $19 26. Rcd2 Nb6 27. Rxe5+ Kf8) 26. Rcd2 $15 {[%emt 0:00:08]} f6 {[%emt 0:03:21]} 27. g3 {[%emt 0:00:44]} Rc7 {[%emt 0:02:15]} (27... a4 $15 28. Bc2 Rxc4) 28. f4 {[%emt 0:01:25]} (28. Bd1 $11) 28... a4 {[%emt 0:04:22]} 29. Bc2 {[%emt 0:00:33]} ({Better is} 29. Bd1) 29... Rxc4 {[%emt 0:01:32]} (29... exf4 $142 30. b3 (30. gxf4 $2 Nb6 $17) 30... fxg3 31. hxg3 Ne5) 30. Bd3 {[%emt 0:01:09]} Rb4 {[%emt 0:02:54]} 31. a3 {[%emt 0:02:02]} Rd4 {[%emt 0:00:28]} 32. Rxd4 {[%emt 0:00:25]} (32. Kd1 $17 {is a better defense.}) 32... cxd4 $19 {[%emt 0:00:36]} 33. Bxa6 $17 {[%emt 0:00:05][%mdl 4096] Endgame KRB-KRN} Nc5 {[%emt 0:02:48][%csl LRa6,LRe4]} 34. Bd3 {[%emt 0:00:06]} Rb7 {[%emt 0:00:15]} 35. Rc2 {[%emt 0:01:50]} (35. Bb1 $142) 35... Kd6 $19 {[%emt 0:00:21]} 36. Bc4 {[%emt 0:01:08]} Nxe4 {[%emt 0:00:53]} 37. Bd3 {[%emt 0:00:18]} (37. Kd1 $142) 37... Nc5 {[%emt 0:00:12] Black is clearly winning.} 38. Bxh7 {[%emt 0:00:16]} g5 {[%emt 0:01:50]} ({Not} 38... e4 $2 39. Rd2 Nb3 40. Rd1 $19) 39. Bg6 {[%emt 0:00:45]} gxf4 {[%emt 0:02:00] White must now prevent ...e4.} 40. gxf4 {[%emt 0:00:07]} e4 {[%emt 0:00:27] Strongly threatening ...d3+.} 41. Rd2 {[%emt 0:00:13]} Kd5 {[%emt 0:00:38]} 42. Bf5 {[%emt 0:01:17]} Rb3 {[%emt 0:01:59] Threatens to win with ...e3.} 43. Bh7 {[%emt 0:00:18]} Re3+ {[%emt 0:00:52]} 44. Kd1 {[%emt 0:00:27]} d3 {[%emt 0:00:12]} 45. Rg2 {[%emt 0:00:37]} Rh3 {[%emt 0:00:46]} 46. Bf5 {[%emt 0:00:12]} Rh4 {[%emt 0:00:45]} 47. Rg8 {[%emt 0:01:04]} Kd4 {[%emt 0:00:35]} 48. Rd8+ {[%emt 0:00:34] Weighted Error Value: White=0.81/Black=0.40} 0-1